bitfinex/quotes_ETHUSD_20240811
["timestamp","ask_amount","ask_price","bid_price","bid_amount"]
[1723336307021,3.135,2625.5,2623.9,2.6677]
[1723336307022,2.66713,2624.6,2623.9,2.6677]
[1723336307243,2.3203,2624.5,2623.8,2.66787]
[1723336307448,2.3203,2624.5,2623.9,0.533581]
[1723336307449,2.35684016,2624.5,2623.9,0.533581]
[1723336307850,2.6673,2624.4,2623.9,0.533581]
[1723336308053,2.66755,2624.2,2623.5,2.66811]
[1723336308258,2.66758,2624.1,2623.5,2.66811]
[1723336308460,2.7038575,2624.1,2623.5,2.66811]
[1723336308624,2.7038575,2624.1,2623.6,1.00165679]
[1723336309556,2.66779,2623.9,2623.6,1.00165679]
[1723336309757,2.3203,2624.0,2623.5,2.66817]
[1723336309932,2.3203,2624.0,2622.5,2.6691]
[1723336309933,2.66848,2623.3,2622.5,2.6691]
[1723336310259,2.66862,2623.1,2622.5,2.6691]
[1723336310446,2.66862,2623.1,2622.3,5.16657]
[1723336310447,2.66862,2623.1,2622.6,0.26691]
[1723336310657,2.66881,2622.9,2622.3,2.4972]
[1723336310827,2.66891,2622.8,2622.3,2.4972]
[1723336311030,0.03566428,2622.8,2622.3,2.4972]
[1723336311575,1.89800464,2625.5,2622.8,2.66885]
[1723336311576,5.66821,2623.5,2622.8,2.66885]
[1723336311733,5.66801,2623.7,2623.0,2.66869]
[1723336312052,3.0,2623.7,2622.9,0.266885]
[1723336312253,2.66828,2623.5,2622.9,0.266885]
[1723336312434,3.0,2623.4,2622.9,0.266885]
[1723336312629,5.66801,2623.7,2623.0,2.66869]
[1723336312828,2.66809,2623.6,2623.0,3.23676042]
[1723336313062,3.0,2623.5,2623.0,3.23676042]
[1723336313735,3.0,2623.6,2623.0,3.23676042]
[1723336313936,5.66812,2623.6,2623.0,3.23676042]
[1723336314291,0.03501549,2623.5,2623.0,3.23676042]
[1723336314441,0.03501549,2623.5,2623.1,3.09511971]
[1723336314641,3.0,2623.6,2623.1,3.09511971]
[1723336315045,0.03501549,2623.5,2623.1,3.09511971]
[1723336315431,0.03501549,2623.5,2623.2,2.66849]
[1723336315652,0.03501549,2623.5,2623.4,2.66829]
[1723336315972,0.03520416,2623.5,2623.4,2.66829]
[1723336316278,3.0,2623.9,2623.5,2.66816]
[1723336316436,3.0,2624.1,2623.5,2.74438509]
[1723336316637,5.66758,2624.1,2623.5,0.60987009]
[1723336317053,3.0,2624.1,2623.5,0.60987009]
[1723336317273,3.0,2624.1,2623.6,0.32780701]
[1723336317866,3.0,2624.1,2623.7,2.66798]
[1723336318069,3.0,2624.3,2623.7,2.74420509]
[1723336318952,2.66718,2624.5,2623.8,2.74402901]
[1723336319145,2.66718,2624.5,2623.8,3.31803122]
[1723336319340,2.66718,2624.5,2623.9,2.66778]
[1723336319545,2.66729,2624.4,2623.8,3.31803122]
[1723336319744,2.66729,2624.4,2623.9,0.56672312]
[1723336320144,3.0,2624.3,2623.9,0.56672312]
[1723336320770,5.66737,2624.4,2623.9,0.56672312]
[1723336321089,2.66749,2624.2,2623.8,0.57400221]
[1723336321389,2.66749,2624.2,2623.4,5.01745]
[1723336321544,2.66749,2624.2,2623.4,5.01741]
[1723336321744,2.66749,2624.2,2623.5,2.66811]
[1723336322248,2.66749,2624.2,2623.6,2.66807]
[1723336322655,5.33506,2624.2,2623.6,2.66807]
[1723336322857,2.66749,2624.2,2623.4,5.01741]
[1723336323057,2.66749,2624.2,2623.5,0.501741]
[1723336323742,5.66729,2624.4,2623.6,2.74427242]
[1723336324862,3.0,2624.4,2623.8,2.66781]
[1723336325042,3.0,2624.5,2624.1,2.66749]
[1723336325242,2.66687,2624.8,2624.2,2.66747]
[1723336325692,2.66687,2624.8,2624.3,0.07620154]
[1723336326669,3.0,2624.7,2624.3,2.74356154]
[1723336326877,8.46844,2625.0,2624.4,2.66721]
[1723336326878,3.0,2624.9,2624.4,2.66721]
[1723336327205,2.66649,2625.2,2624.6,2.66706]
[1723336327503,2.66602,2625.7,2624.8,2.3492]
[1723336327671,2.3046,2625.9,2624.9,0.31871569]
[1723336327672,4.97039,2625.9,2624.9,0.31871569]
[1723336327873,2.66612,2625.6,2625.0,0.55]
[1723336328083,2.66565,2626.0,2624.9,0.24253947]
[1723336328396,2.66626,2625.4,2624.9,0.24253947]
[1723336328552,2.66625,2625.5,2624.9,0.24253947]
[1723336328756,2.66625,2625.5,2624.9,2.90920947]
[1723336329263,2.66644,2625.3,2624.6,2.66706]
[1723336329460,2.66644,2625.3,2624.0,3.0]
[1723336329461,3.135,2625.6,2624.4,2.3492]
[1723336329671,2.66687,2624.8,2624.1,5.01673]
[1723336329879,2.66687,2624.8,2624.2,0.501673]
[1723336330463,2.66687,2624.8,2624.2,3.169143]
[1723336330998,2.66687,2624.8,2624.3,0.55]
[1723336331786,2.6667,2625.0,2624.3,3.21736]
[1723336332195,2.6667,2625.0,2624.4,2.6672]
[1723336332400,2.6667,2625.0,2624.5,0.588456]
[1723336332562,2.66696,2624.8,2624.3,0.55]
[1723336333704,2.66714,2624.6,2624.3,0.55]
[1723336333881,2.66714,2624.6,2624.2,0.501673]
[1723336334261,2.6669,2624.8,2624.0,19.92]
[1723336334262,2.66728,2624.4,2624.0,19.92]
[1723336334464,5.33465,2624.4,2623.7,10.01637792]
[1723336334682,2.66709,2624.6,2623.8,1.23458779]
[1723336334995,3.0,2624.5,2623.8,1.23458779]
[1723336335401,3.0,2624.5,2623.9,2.66771]
[1723336335988,3.0,2624.5,2624.0,2.66767]
[1723336336186,3.0,2624.5,2624.1,0.533538]
[1723336336389,5.66718,2624.5,2624.1,0.533538]
[1723336336588,5.33468,2624.4,2623.8,1.23458779]
[1723336336847,2.66731,2624.4,2623.8,1.23458779]
[1723336337280,2.66739,2624.3,2623.8,1.23458779]
[1723336338001,5.33467,2624.4,2623.8,1.23458779]
[1723336338216,2.66737,2624.3,2623.9,1.12509457]
[1723336338584,2.66731,2624.4,2623.9,1.12509457]
[1723336339282,2.66748,2624.2,2623.7,10.01635792]
[1723336339610,2.66731,2624.4,2623.8,2.66787]
[1723336339987,2.66739,2624.3,2623.7,10.01635792]
[1723336340179,2.66739,2624.3,2623.8,1.23458579]
[1723336341187,2.6675,2624.2,2623.8,1.23458579]
[1723336341393,2.6675,2624.2,2623.7,7.34845792]
[1723336341587,2.66769,2624.0,2623.7,7.34845792]
[1723336342394,2.6681,2623.6,2623.2,7.34845792]
[1723336342704,2.6681,2623.6,2623.0,2.4519]
[1723336342881,2.6681,2623.6,2623.1,3.8302436]
[1723336343827,2.66837,2623.4,2622.9,39.69845792]
[1723336344129,2.66811,2623.6,2622.9,42.36715792]
[1723336344425,2.66819,2623.5,2622.9,42.36715792]
[1723336344593,2.6683,2623.4,2622.9,42.36715792]
[1723336344926,2.6683,2623.4,2623.0,3.8302436]
[1723336345129,2.66811,2623.6,2623.0,6.4989336]
[1723336345340,5.07203,2623.8,2623.1,2.66859]
[1723336345341,2.66798,2623.7,2623.1,2.66859]
[1723336345485,5.66811,2623.6,2623.2,0.64988336]
[1723336345685,5.66811,2623.6,2623.0,3.8302436]
[1723336345686,2.66839,2623.3,2623.0,3.8302436]
[1723336345914,2.66867,2623.1,2622.7,2.381]
[1723336346095,2.66867,2623.1,2622.5,10.01758792]
[1723336346527,2.66867,2623.1,2622.5,7.34845792]
[1723336347386,2.66867,2623.1,2622.5,10.01764792]
[1723336347582,2.66867,2623.1,2622.6,1.23986479]
[1723336348002,5.33735,2623.1,2622.6,1.23986479]
[1723336348325,2.66873,2623.0,2622.6,1.23986479]
[1723336348500,2.6688,2622.9,2622.6,1.23986479]
[1723336348695,2.6687,2623.0,2622.6,1.23986479]
[1723336349785,2.6688,2622.9,2622.6,1.23986479]
[1723336350084,2.6688,2622.9,2622.4,2.381]
[1723336350640,2.66867,2623.1,2622.4,5.05027]
[1723336351956,2.66871,2623.0,2622.4,5.05027]
[1723336352145,2.66867,2623.1,2622.4,5.05027]
[1723336352666,3.0,2623.6,2622.5,0.07625298]
[1723336352869,2.66821,2623.5,2622.9,5.0963]
[1723336353184,5.4581,2624.0,2623.2,2.66843]
[1723336353465,2.66775,2624.0,2623.4,2.66827]
[1723336353678,2.66775,2624.0,2623.5,0.51721011]
[1723336354770,2.66775,2624.0,2623.3,2.50383113]
[1723336354771,5.66778,2623.9,2623.3,2.4276]
[1723336354930,2.66815,2623.6,2623.3,2.4276]
[1723336355262,2.66801,2623.7,2623.1,2.66859]
[1723336355559,2.66801,2623.7,2623.2,0.509619]
[1723336356184,2.66809,2623.6,2623.2,0.509619]
[1723336356644,2.66809,2623.6,2623.0,2.4276]
[1723336356982,2.66801,2623.7,2623.1,3.21859]
[1723336357189,2.66749,2624.2,2623.5,5.09572]
[1723336357392,2.66718,2624.5,2623.7,2.4276]
[1723336357676,5.4581,2624.8,2623.7,2.4276]
[1723336357677,2.66737,2624.3,2623.8,0.38159777]
[1723336358479,2.66729,2624.4,2623.8,0.38159777]
[1723336358655,5.33428,2624.6,2623.9,2.66771]
[1723336358856,5.33428,2624.6,2623.9,3.48219478]
[1723336359163,2.66717,2624.5,2623.9,3.48219478]
[1723336360063,5.6673,2624.4,2623.9,0.81448478]
[1723336360376,8.33466,2624.4,2623.9,0.81448478]
[1723336361280,5.6673,2624.4,2623.9,0.81448478]
[1723336365102,5.6673,2624.4,2624.0,0.35585806]
[1723336367180,3.0,2624.7,2624.2,5.08991]
[1723336367379,2.66689,2624.8,2624.2,5.08991]
[1723336367761,2.66651,2625.2,2624.3,0.07620704]
[1723336367964,2.66667,2625.0,2624.4,5.0897]
[1723336368165,2.66667,2625.0,2624.5,0.59278706]
[1723336368767,2.66667,2625.0,2624.5,3.25994706]
[1723336369914,5.66651,2625.2,2624.5,3.25994706]
[1723336370069,3.0,2625.1,2624.5,3.25994706]
[1723336370407,3.0,2625.1,2624.6,0.56824471]
[1723336371003,5.6666,2625.1,2624.6,0.56824471]
[1723336372689,2.66674,2625.0,2624.6,0.56824471]
[1723336373021,2.66708,2624.6,2624.2,7.34845792]
[1723336373225,2.66708,2624.6,2624.1,2.4246]
[1723336374493,5.33423,2624.6,2624.1,2.4246]
[1723336374817,2.66717,2624.5,2624.1,2.4246]
[1723336374975,2.66717,2624.5,2624.1,5.39390579]
[1723336375821,2.66711,2624.6,2624.1,5.39390579]
[1723336376512,5.33426,2624.6,2624.1,5.39390579]
[1723336377011,2.66719,2624.5,2624.1,2.4246]
[1723336377302,2.66729,2624.4,2624.1,2.4246]
[1723336378820,2.66692,2624.8,2624.1,2.4246]
[1723336379020,3.0,2624.7,2624.1,2.4246]
[1723336379220,3.0,2624.7,2624.2,0.24246]
[1723336379716,2.66707,2624.6,2624.2,0.24246]
[1723336380585,2.66727,2624.5,2624.1,2.4246]
[1723336381322,2.66724,2624.5,2624.1,2.4246]
[1723336383020,8.13907,2625.3,2624.2,0.55]
[1723336383212,2.66683,2624.9,2624.4,2.66727]
[1723336383519,3.0,2624.8,2624.4,3.16116141]
[1723336384215,2.66658,2625.1,2624.6,2.4936]
[1723336384424,2.66604,2625.7,2624.8,2.4936]
[1723336384586,2.66604,2625.7,2625.0,2.66666]
[1723336385946,2.66579,2625.9,2625.1,2.56978166]
[1723336386098,2.66579,2625.9,2625.2,2.66638]
[1723336386298,2.66579,2625.9,2625.3,3.26611998]
[1723336386848,2.66536,2626.3,2625.6,5.15959]
[1723336387333,2.66551,2626.2,2625.6,5.15959]
[1723336387539,2.66536,2626.3,2625.6,5.15959]
[1723336387831,2.66536,2626.3,2625.6,5.94978259]
[1723336388001,2.66551,2626.2,2625.6,5.94978259]
[1723336388332,2.66536,2626.3,2625.6,5.94978259]
[1723336388333,2.66555,2626.1,2625.6,5.94978259]
[1723336389130,2.66555,2626.1,2625.4,2.66617]
[1723336389131,2.66601,2625.7,2625.3,3.01721617]
[1723336389458,5.33204,2625.7,2625.3,2.4936]
[1723336390003,2.66601,2625.7,2625.3,2.4936]
[1723336390723,2.66622,2625.5,2625.3,2.4936]
[1723336390900,2.66633,2625.4,2625.1,7.34845792]
[1723336391527,2.66622,2625.5,2625.1,7.34845792]
[1723336391949,2.66629,2625.4,2625.1,7.34845792]
[1723336392814,2.66622,2625.5,2625.1,7.34845792]
[1723336392815,2.66642,2625.3,2625.1,7.34845792]
[1723336393921,2.66582,2625.9,2625.3,2.66635]
[1723336394137,2.66582,2625.9,2625.4,2.2631]
[1723336394338,2.66555,2626.1,2625.4,4.92935]
[1723336394646,2.66555,2626.1,2625.5,0.07616715]
[1723336394852,2.66539,2626.3,2625.6,2.66605]
[1723336395147,2.66551,2626.2,2625.6,2.66605]
[1723336395448,2.66539,2626.3,2625.6,2.66605]
[1723336395449,5.33081,2626.3,2625.6,2.66605]
[1723336395650,3.0,2626.2,2625.7,3.06632227]
[1723336395844,3.0,2626.2,2625.8,2.2631]
[1723336396052,2.66516,2626.5,2625.9,0.0761602]
[1723336396235,2.66516,2626.5,2625.9,3.00820391]
[1723336396423,2.66527,2626.4,2625.9,0.26635371]
[1723336396989,2.6654,2626.3,2625.9,0.26635371]
[1723336397516,2.66527,2626.4,2625.9,0.26635371]
[1723336398046,2.66551,2626.2,2625.8,2.2631]
[1723336398820,2.66507,2626.6,2625.9,0.07616283]
[1723336399021,5.33019,2626.6,2625.9,2.74184283]
[1723336399343,5.66486,2626.8,2626.0,0.50049428]
[1723336399544,2.66486,2626.8,2626.1,0.55]
[1723336400633,2.66486,2626.8,2626.1,3.21547]
[1723336401047,2.66495,2626.7,2626.1,3.21547]
[1723336401248,2.66495,2626.7,2626.1,4.043928]
[1723336401647,5.67968,2627.0,2626.1,4.043928]
[1723336401648,2.66481,2626.9,2626.1,4.043928]
[1723336401829,5.66486,2626.8,2626.1,4.043928]
[1723336402033,2.6652,2626.5,2626.2,1.37957859]
[1723336402240,2.66534,2626.3,2626.0,9.75185792]
[1723336402437,2.66554,2626.1,2626.0,2.4034]
[1723336402670,2.66534,2626.3,2626.0,2.4034]
[1723336403252,2.56545,2626.2,2626.0,2.4034]
[1723336403446,2.66534,2626.3,2626.0,2.64374]
[1723336404565,2.66545,2626.2,2626.0,2.64374]
[1723336404768,2.66545,2626.2,2626.0,2.4034]
[1723336405478,2.66555,2626.1,2625.6,9.75185792]
[1723336405680,2.66555,2626.1,2625.7,1.24179279]
[1723336406577,2.66585,2625.8,2625.7,1.24179279]
[1723336406885,2.66585,2625.8,2625.6,9.75185792]
[1723336408282,2.66595,2625.7,2625.6,7.34845792]
[1723336408578,2.66561,2626.1,2625.2,9.75185792]
[1723336408780,2.66602,2625.7,2625.2,9.75185792]
[1723336410085,2.66606,2625.6,2625.2,9.75185792]
[1723336410268,2.66606,2625.6,2625.2,12.23670971]
[1723336410982,2.66585,2625.8,2625.2,12.23670971]
[1723336411192,2.66598,2625.7,2625.2,12.23670971]
[1723336412372,2.66598,2625.7,2625.2,4.88825179]
[1723336412578,2.66598,2625.7,2625.2,2.4034]
[1723336412751,2.66619,2625.5,2625.2,2.4034]
[1723336413254,5.33243,2625.5,2625.2,2.4034]
[1723336413460,3.0,2626.1,2624.9,7.34845792]
[1723336413461,2.66646,2625.2,2624.9,7.34845792]
[1723336413650,2.66657,2625.1,2624.8,2.2913]
[1723336414278,2.66646,2625.2,2624.8,2.2913]
[1723336415593,3.0,2625.7,2624.8,2.2913]
[1723336415822,2.66586,2625.8,2625.2,2.2913]
[1723336416017,5.33139,2626.0,2625.3,2.66635]
[1723336416312,3.0,2625.9,2625.3,2.66635]
[1723336416514,3.0,2625.9,2625.4,0.50338256]
[1723336417075,2.66586,2625.8,2625.4,0.50338256]
[1723336417479,2.66586,2625.8,2625.2,2.2913]
[1723336417887,5.33179,2625.8,2625.2,2.2913]
[1723336418211,2.66586,2625.8,2625.2,2.2913]
[1723336418905,2.66615,2625.6,2625.2,2.2913]
[1723336419291,2.66615,2625.6,2625.2,2.52043]
[1723336419910,2.66588,2625.8,2625.2,2.52043]
[1723336420086,2.66568,2626.0,2625.3,2.66628]
[1723336420293,2.66549,2626.2,2625.6,2.4771]
[1723336420501,2.66549,2626.2,2625.7,0.514324]
[1723336422311,2.66528,2626.4,2625.7,3.180274]
[1723336422612,2.35,2626.7,2625.9,2.66568]
[1723336422786,2.66572,2626.0,2625.7,0.514324]
[1723336422986,2.66572,2626.0,2625.5,2.4771]
[1723336423197,2.66556,2626.1,2625.5,2.4771]
[1723336423612,2.66565,2626.0,2625.5,5.14324]
[1723336423919,2.66565,2626.0,2625.5,2.4771]
[1723336424090,2.66565,2626.0,2625.6,0.24771]
[1723336426500,2.66532,2626.4,2625.7,3.0271]
[1723336426694,2.66508,2626.6,2626.0,2.4771]
[1723336426923,2.66524,2626.4,2626.0,2.4771]
[1723336427220,2.66524,2626.4,2626.0,2.72481]
[1723336427719,2.66535,2626.3,2626.0,2.72481]
[1723336428027,2.66524,2626.4,2626.0,2.4771]
[1723336428185,5.66515,2626.5,2626.0,2.4771]
[1723336429787,3.0,2626.5,2626.0,5.14273]
[1723336430120,2.66487,2626.8,2626.2,2.66536]
[1723336431285,2.66495,2626.7,2626.1,2.991373]
[1723336433319,2.66487,2626.8,2626.1,5.656843]
[1723336433519,5.32978,2626.8,2626.2,0.8322413]
[1723336433697,2.66494,2626.7,2626.2,0.8322413]
[1723336433893,2.66487,2626.8,2626.2,0.8322413]
[1723336434618,3.0,2627.0,2626.5,2.3497]
[1723336434810,3.0,2627.1,2626.6,0.23497]
[1723336436008,3.0,2627.1,2626.6,2.89998]
[1723336436529,3.0,2627.1,2626.6,0.23497]
[1723336437502,2.66465,2627.0,2626.6,0.23497]
[1723336437704,3.0,2626.9,2626.6,0.23497]
[1723336438520,5.66477,2626.9,2626.6,0.23497]
[1723336438720,5.66477,2626.9,2626.5,2.3497]
[1723336438721,2.66502,2626.7,2626.5,2.3497]
[1723336438908,5.32977,2626.8,2626.2,9.74045792]
[1723336439111,2.66485,2626.8,2626.2,9.74045792]
[1723336439408,2.66485,2626.8,2626.3,0.97404579]
[1723336439588,2.6651,2626.6,2626.2,2.392]
[1723336439998,3.0,2626.9,2626.6,2.392]
[1723336440245,2.66454,2627.1,2626.6,2.392]
[1723336440391,3.0,2627.0,2626.6,2.392]
[1723336440592,3.0,2627.0,2625.8,7.34845792]
[1723336440593,2.66474,2626.9,2626.2,2.392]
[1723336440904,2.66524,2626.5,2626.2,2.392]
[1723336441126,2.66524,2626.5,2625.9,5.05768]
[1723336441434,2.66525,2626.4,2625.9,5.05768]
[1723336441599,2.66525,2626.4,2626.0,1.24061379]
[1723336442062,2.66554,2626.1,2626.0,1.24061379]
[1723336442205,2.66554,2626.1,2625.9,2.392]
[1723336442991,2.66523,2626.5,2625.9,2.392]
[1723336443197,3.0,2626.4,2625.9,5.05768]
[1723336443431,3.0,2626.4,2626.0,0.505768]
[1723336445098,3.0,2626.4,2626.1,2.392]
[1723336445295,3.0,2626.6,2626.1,5.05754]
[1723336445642,2.66478,2626.9,2626.3,5.05725]
[1723336446291,2.66494,2626.7,2626.3,2.392]
[1723336447157,2.66505,2626.6,2626.3,2.392]
[1723336447441,5.32995,2626.7,2626.0,2.897768]
[1723336447634,2.66494,2626.7,2626.1,3.2218248]
[1723336447845,2.66494,2626.7,2626.1,5.8873048]
[1723336448146,2.66494,2626.7,2626.2,2.66541]
[1723336448640,2.66494,2626.7,2626.1,3.2218048]
[1723336448839,2.66494,2626.7,2626.2,0.56138048]
[1723336449137,2.66485,2626.8,2626.2,3.22676048]
[1723336449347,2.66495,2626.7,2626.2,0.56138048]
[1723336449549,5.35,2627.0,2626.4,2.66516]
[1723336449550,3.0,2627.0,2626.4,2.66516]
[1723336449713,3.0,2627.0,2626.5,2.66512]
[1723336449922,3.0,2627.0,2626.6,2.392]
[1723336450104,3.0,2627.0,2626.6,5.05702]
[1723336450310,3.0,2627.1,2626.7,0.772214]
[1723336450753,5.66449,2627.2,2626.7,0.772214]
[1723336451036,3.0,2627.2,2626.7,0.772214]
[1723336451398,3.0,2627.2,2626.7,3.437134]
[1723336451757,3.0,2627.2,2626.8,0.59052724]
[1723336452241,5.66444,2627.2,2626.8,0.59052724]
[1723336454437,2.66459,2627.1,2626.8,0.59052724]
[1723336454651,2.66467,2627.0,2626.3,2.4228]
[1723336454813,2.66491,2626.8,2626.3,2.4228]
[1723336455208,2.61491,2626.8,2626.3,5.08814]
[1723336455458,2.61491,2626.8,2626.4,1.24365979]
[1723336456754,2.66499,2626.7,2626.3,2.4228]
[1723336457103,5.33,2626.7,2626.3,2.4228]
[1723336457456,2.66504,2626.6,2626.3,2.4228]
[1723336458135,5.66522,2626.5,2625.9,2.3383]
[1723336458314,2.66522,2626.5,2625.9,2.3383]
[1723336459117,2.66534,2626.3,2625.9,2.3383]
[1723336459345,2.66534,2626.3,2626.0,0.7287451]
[1723336460042,2.66546,2626.2,2626.0,0.7287451]
[1723336460233,2.66546,2626.2,2625.9,2.3383]
[1723336460869,2.66555,2626.1,2625.9,2.3383]
[1723336461187,2.66555,2626.1,2625.7,9.68675792]
[1723336461470,2.66534,2626.3,2625.8,1.26004779]
[1723336461774,2.66517,2626.5,2625.8,3.92581779]
[1723336462078,3.0,2626.4,2625.9,2.3383]
[1723336462365,3.0,2626.4,2626.0,3.29206078]
[1723336462771,2.66499,2626.7,2626.1,2.66554]
[1723336462976,3.0,2626.6,2626.1,2.66554]
[1723336463498,3.0,2626.6,2626.0,3.29198078]
[1723336463778,3.0,2626.6,2626.1,0.56302908]
[1723336464471,2.66478,2626.9,2626.2,2.3383]
[1723336464685,3.0,2626.8,2626.2,5.00366]
[1723336464971,3.0,2626.8,2626.4,2.66521]
[1723336465170,3.0,2626.8,2626.5,0.27413539]
[1723336465370,2.66495,2626.7,2626.2,2.3383]
[1723336465540,2.66475,2626.9,2626.3,2.66527]
[1723336465741,3.0,2626.8,2626.3,2.66527]
[1723336465971,5.66485,2626.8,2626.2,5.00368]
[1723336466177,3.0,2626.8,2626.3,1.23521379]
[1723336466579,5.6649,2626.8,2626.3,1.23521379]
[1723336467264,2.66515,2626.5,2626.2,2.3383]
[1723336467650,2.66495,2626.7,2626.2,2.3383]
[1723336468879,5.6649,2626.8,2626.2,2.3383]
[1723336469176,2.66501,2626.7,2626.2,3.84007179]
[1723336469677,2.66517,2626.5,2626.2,2.3383]
[1723336469977,2.66517,2626.5,2626.1,7.34845792]
[1723336469978,2.66534,2626.3,2626.1,7.34845792]
[1723336470181,5.33077,2626.3,2625.6,5.00427]
[1723336470366,2.66555,2626.1,2625.6,5.5733]
[1723336470542,2.66565,2626.0,2625.6,5.5733]
[1723336470749,2.66575,2625.9,2625.5,7.34845792]
[1723336471468,2.66559,2626.1,2625.4,19.92]
[1723336471655,3.0,2626.0,2625.5,2.66614]
[1723336471985,2.66518,2626.5,2625.7,2.3383]
[1723336472160,3.0,2626.4,2625.9,2.66575]
[1723336473685,3.0,2626.4,2626.0,2.4484]
[1723336473846,2.66504,2626.6,2626.0,2.9984]
[1723336473847,3.0,2626.5,2626.0,2.9984]
[1723336474047,3.0,2626.5,2626.0,3.831382]
[1723336474346,3.0,2626.5,2626.0,6.497012]
[1723336474546,3.0,2626.6,2626.0,6.497012]
[1723336475883,3.0,2626.6,2626.1,2.66554]
[1723336476088,3.0,2626.6,2626.1,3.5817992]
[1723336479788,2.66478,2626.9,2626.2,5.02957]
[1723336479987,2.3055,2627.3,2626.2,2.3642]
[1723336479988,4.6555,2627.3,2626.2,2.3642]
[1723336480190,2.66459,2627.1,2626.6,2.3642]
[1723336480492,2.66446,2627.2,2626.7,0.502934]
[1723336481556,2.66444,2627.2,2626.7,3.167854]
[1723336481762,2.66444,2627.2,2626.8,0.5532054]
[1723336483088,2.66444,2627.2,2626.6,5.02918]
[1723336484193,2.66455,2627.1,2626.6,2.3642]
[1723336484493,2.66455,2627.1,2626.6,2.867126]
[1723336485659,2.66469,2627.0,2626.6,2.3642]
[1723336486889,2.66476,2626.9,2626.3,10.01372792]
[1723336487194,2.6647,2627.0,2626.3,12.37791792]
[1723336487395,4.65646255,2627.3,2626.3,9.71265792]
[1723336487690,2.6649,2626.8,2626.3,9.71265792]
[1723336488261,2.66504,2626.6,2626.3,9.71265792]
[1723336488458,2.66504,2626.6,2626.3,2.3642]
[1723336488862,2.66504,2626.6,2626.1,0.9162592]
[1723336491887,5.33016,2626.6,2626.1,0.9162592]
[1723336492382,2.66504,2626.6,2626.1,0.9162592]
[1723336492587,2.66504,2626.6,2626.2,0.32804592]
[1723336493460,2.66535,2626.3,2626.1,0.9162592]
[1723336493774,2.66535,2626.3,2626.0,2.3642]
[1723336494294,2.66535,2626.3,2625.7,2.4298]
[1723336494472,2.66561,2626.1,2625.7,2.4298]
[1723336495296,2.66538,2626.3,2625.7,2.4298]
[1723336495499,2.66538,2626.3,2625.7,3.67423379]
[1723336495679,5.3308,2626.3,2625.7,6.34018379]
[1723336495878,2.66519,2626.5,2625.8,2.4298]
[1723336496075,2.66496,2626.7,2625.8,2.4298]
[1723336496290,3.0,2626.6,2625.8,2.4298]
[1723336496467,3.0,2626.6,2626.0,2.4298]
[1723336496795,2.66535,2626.3,2626.0,2.4298]
[1723336497002,5.33077,2626.3,2626.0,2.4298]
[1723336497163,2.66535,2626.3,2626.0,2.4298]
[1723336497696,5.33077,2626.3,2626.0,2.4298]
[1723336497996,2.66535,2626.3,2626.0,2.4298]
[1723336498690,5.33077,2626.3,2626.0,2.4298]
[1723336499004,2.66535,2626.3,2626.0,2.4298]
[1723336499698,2.66519,2626.5,2626.0,2.67278]
[1723336499699,5.33042,2626.5,2626.0,2.67278]
[1723336500002,2.66519,2626.5,2626.0,2.67278]
[1723336500197,3.0,2626.6,2626.0,2.67278]
[1723336500499,5.66506,2626.6,2626.0,5.33837]
[1723336500799,5.66506,2626.6,2626.1,0.80041]
[1723336501097,5.66504,2626.6,2626.1,0.80041]
[1723336501300,2.66526,2626.4,2626.0,2.4298]
[1723336501669,2.66536,2626.3,2626.0,2.4298]
[1723336501903,2.66545,2626.2,2626.0,2.4298]
[1723336502678,2.66555,2626.1,2625.8,2.4298]
[1723336502895,2.66555,2626.1,2625.4,2.4298]
[1723336502896,2.66575,2625.9,2625.4,2.4298]
[1723336503094,2.66557,2626.1,2625.5,0.509609]
[1723336503305,2.66565,2626.0,2625.5,0.509609]
[1723336504015,2.66559,2626.1,2625.5,0.509609]
[1723336504367,2.66578,2625.9,2625.5,0.509609]
[1723336504585,2.66559,2626.1,2625.6,0.2939409]
[1723336505005,2.66565,2626.0,2625.6,0.2939409]
[1723336505914,2.66575,2625.9,2625.6,0.2939409]
[1723336506315,2.66559,2626.1,2625.6,0.2939409]
[1723336506518,5.33122,2626.1,2625.6,0.2939409]
[1723336506707,2.66559,2626.1,2625.6,0.2939409]
[1723336506884,5.66539,2626.3,2625.7,2.4298]
[1723336507082,8.33081,2626.3,2625.8,0.53897309]
[1723336507287,2.66546,2626.2,2625.8,0.53897309]
[1723336507488,2.66546,2626.2,2625.7,2.4298]
[1723336507701,8.33081,2626.3,2625.7,2.4298]
[1723336507903,2.66547,2626.2,2625.7,2.4298]
[1723336508994,8.33081,2626.3,2625.7,2.4298]
[1723336509329,5.33041,2626.5,2625.9,2.66569]
[1723336509688,2.66519,2626.5,2625.8,2.4298]
[1723336510122,2.66519,2626.5,2625.8,3.0250202]
[1723336510123,2.66535,2626.3,2625.8,3.0250202]
[1723336511226,2.66519,2626.5,2625.8,3.0250202]
[1723336511227,2.66519,2626.5,2625.9,2.66571]
[1723336511531,3.0,2626.4,2626.0,2.4298]
[1723336511692,3.0,2626.4,2626.0,2.99887302]
[1723336511898,5.66527,2626.4,2626.0,2.99887302]
[1723336512094,2.66512,2626.6,2626.0,5.66451302]
[1723336513850,2.66453,2627.1,2626.4,2.302]
[1723336514024,2.66481,2626.9,2626.4,2.302]
[1723336516409,2.66486,2626.8,2626.4,2.302]
[1723336516608,2.66481,2626.9,2626.4,2.302]
[1723336517212,2.66468,2627.0,2626.4,2.302]
[1723336517415,2.66457,2627.1,2626.5,0.2302]